bitfinex-derivatives/quotes_ETHF0:USTF0_20241023
["timestamp","ask_amount","ask_price","bid_price","bid_amount"]
[1729641600187,4.5878,2624.6,2624.2,1.7893]
[1729641601383,3.2078,2624.6,2624.2,0.4093]
[1729641604479,3.2078,2624.9,2624.2,0.4093]
[1729641604686,3.2078,2625.2,2624.5,3.2078]
[1729641604989,3.2078,2625.2,2624.6,0.8172]
[1729641605179,3.2078,2625.6,2624.6,1.245]
[1729641605377,3.2078,2625.6,2625.0,3.2078]
[1729641605578,0.18646693,2626.0,2625.1,1.2169]
[1729641605883,0.18646693,2626.0,2625.4,3.2078]
[1729641606084,3.2078,2626.2,2625.5,3.2078]
[1729641606386,3.2078,2626.5,2625.8,3.2078]
[1729641606572,3.2078,2627.1,2626.4,3.2078]
[1729641606781,3.2078,2628.1,2626.9,3.2078]
[1729641607076,5.44973851,2629.2,2628.0,3.2078]
[1729641607077,3.2078,2629.2,2628.0,3.2078]
[1729641607276,3.2078,2629.9,2628.0,3.2078]
[1729641607479,3.2078,2629.9,2628.1,0.4002]
[1729641607480,3.2078,2629.7,2628.1,0.4002]
[1729641607774,0.18784053,2629.9,2627.6,0.99925324]
[1729641607775,3.2078,2628.9,2627.6,3.2078]
[1729641607975,4.95693674,2630.7,2627.6,3.2078]
[1729641607976,3.2078,2628.4,2627.6,3.2078]
[1729641608172,3.2078,2628.1,2626.8,3.608]
[1729641608372,3.2078,2628.1,2627.2,3.2078]
[1729641610081,3.2078,2628.1,2626.9,3.6081]
[1729641610281,3.2078,2627.8,2626.9,0.4003]
[1729641610578,3.2078,2627.8,2626.9,3.6081]
[1729641610980,3.2078,2627.8,2626.9,0.4003]
[1729641611376,3.2078,2627.8,2626.9,3.6081]
[1729641611981,3.2078,2627.8,2627.2,3.2078]
[1729641612384,3.2078,2627.8,2627.3,0.4009]
[1729641613286,3.2078,2627.8,2627.2,3.2078]
[1729641613978,3.2078,2627.8,2626.9,4.009]
[1729641614180,3.2078,2627.8,2627.2,3.2078]
[1729641614583,3.2078,2628.1,2627.2,3.2078]
[1729641614785,3.1522,2628.1,2627.2,3.2078]
[1729641617083,3.1522,2628.1,2626.9,4.009]
[1729641617284,3.1522,2628.1,2626.9,4.99]
[1729641617587,3.2078,2627.8,2626.9,4.99]
[1729641618087,3.2078,2628.1,2626.9,3.6081]
[1729641618289,3.2078,2627.7,2626.9,3.6081]
[1729641618586,0.308,2627.6,2626.9,3.6081]
[1729641620382,0.308,2627.6,2626.9,0.4003]
[1729641621691,3.2078,2627.7,2626.9,3.6081]
[1729641623887,0.3082,2628.0,2627.3,3.2078]
[1729641625586,3.2078,2627.8,2627.3,3.2078]
[1729641625982,3.2078,2627.8,2627.0,3.2078]
[1729641629888,3.2078,2627.5,2627.0,3.2078]
[1729641630090,1.0552,2627.4,2627.0,3.2078]
[1729641630292,0.34273,2627.1,2626.5,3.2078]
[1729641630492,0.34275,2627.0,2626.5,3.2078]
[1729641631196,0.34277,2626.9,2626.5,3.2078]
[1729641631390,3.2078,2627.2,2626.5,3.2078]
[1729641631891,3.2078,2626.9,2626.2,3.2078]
[1729641632196,0.34277,2626.8,2626.2,3.2078]
[1729641632395,0.7098,2626.7,2626.2,3.2078]
[1729641632589,0.7098,2626.7,2626.0,0.4046]
[1729641632590,3.5506,2626.6,2626.0,0.4046]
[1729641633096,3.2078,2626.6,2626.0,0.4046]
[1729641633597,0.34283,2626.4,2626.0,0.4046]
[1729641633798,3.2078,2626.6,2626.0,0.4046]
[1729641633799,0.34282,2626.5,2626.0,0.4046]
[1729641635398,3.55061,2626.6,2626.0,0.4046]
[1729641635792,3.2078,2626.6,2626.0,0.4046]
[1729641635990,0.34281,2626.5,2626.0,0.4046]
[1729641636500,3.5506,2626.6,2626.0,0.4046]
[1729641638805,0.34281,2626.5,2626.0,0.4046]
[1729641639403,3.55061,2626.6,2626.0,0.4046]
[1729641639701,3.5506,2626.6,2626.0,0.4046]
[1729641640199,3.2078,2626.9,2626.3,0.34283]
[1729641640392,3.2078,2627.2,2626.5,3.2078]
[1729641640590,4.3965434,2629.1,2626.8,3.2078]
[1729641640591,0.34266,2627.7,2626.8,3.2078]
[1729641640789,3.2078,2627.5,2626.9,0.34275]
[1729641641302,3.2078,2627.5,2627.0,0.3885]
[1729641641710,3.2078,2627.5,2626.6,0.4104]
[1729641641898,0.34271,2627.3,2626.6,0.4104]
[1729641642098,0.34271,2627.3,2626.6,0.7532]
[1729641642791,0.3427,2627.4,2626.6,0.7532]
[1729641643192,3.2078,2627.5,2626.6,0.4104]
[1729641643503,0.34269,2627.4,2626.6,0.75319]
[1729641643896,0.34271,2627.3,2626.6,0.7532]
[1729641644603,0.3427,2627.4,2626.6,0.7532]
[1729641649204,0.3427,2627.4,2626.7,0.34278]
[1729641650704,0.3427,2627.4,2626.6,0.75319]
[1729641651609,3.2078,2627.5,2626.6,0.75319]
[1729641651807,0.34269,2627.4,2626.6,0.75319]
[1729641652108,0.3427,2627.4,2626.6,0.75319]
[1729641653707,0.2871,2627.4,2626.6,0.75319]
[1729641655708,3.2078,2627.5,2626.6,0.4104]
[1729641655709,0.34272,2627.3,2626.6,0.4104]
[1729641655910,3.2078,2627.5,2626.6,0.75319]
[1729641655911,0.3427,2627.4,2626.6,0.75319]
[1729641656503,3.2078,2627.5,2626.6,0.4104]
[1729641656504,0.34273,2627.1,2626.6,0.4104]
[1729641656811,3.2078,2626.9,2626.6,0.4104]
[1729641659313,3.55056,2626.9,2626.6,0.4104]
[1729641659514,3.2078,2626.9,2626.6,0.4104]
[1729641660703,3.8072,2626.8,2626.1,0.3917]
[1729641660910,3.2078,2626.5,2626.1,0.4055]
[1729641661307,3.8582,2626.8,2626.1,0.4055]
[1729641661511,4.20098,2626.8,2626.5,0.3428]
[1729641661908,3.8582,2626.8,2626.2,0.4177]
[1729641662109,0.34279,2626.7,2626.4,0.34281]
[1729641662309,0.3428,2626.6,2626.4,0.34281]
[1729641663212,3.8072,2626.5,2626.3,0.34283]
[1729641663411,0.3428,2626.6,2626.3,0.34283]
[1729641664213,8.2547434,2626.8,2626.1,0.4055]
[1729641664412,3.2078,2626.5,2626.1,0.4055]
[1729641664918,0.34283,2626.4,2626.2,0.34284]
[1729641665319,3.55062,2626.5,2626.3,0.34283]
[1729641665512,3.2078,2626.5,2626.4,0.34282]
[1729641670119,3.2078,2626.8,2626.7,0.34277]
[1729641670719,0.3428,2626.6,2626.5,0.3428]
[1729641670926,0.34279,2626.7,2626.5,0.3428]
[1729641671123,0.34279,2626.7,2626.1,1.26266]
[1729641671124,0.3428,2626.6,2626.4,0.34282]
[1729641671922,0.34279,2626.7,2626.4,0.34282]
[1729641672620,3.2078,2626.8,2626.4,0.34282]
[1729641672928,0.3428,2626.6,2626.4,0.34282]
[1729641673133,0.3428,2626.7,2626.4,0.34282]
[1729641673614,0.3428,2626.7,2626.2,0.419]
[1729641673819,0.3428,2626.7,2626.5,0.3428]
[1729641674017,3.2078,2626.8,2626.5,0.3428]
[1729641674018,3.55058,2626.8,2626.5,0.3428]
[1729641674215,7.015,2626.8,2626.6,0.4084]
[1729641674415,0.34278,2626.7,2626.6,0.4084]
[1729641674614,3.8072,2626.7,2626.2,0.419]
[1729641674819,0.34282,2626.5,2626.3,0.4084]
[1729641675317,0.34282,2626.5,2626.3,0.75123]
[1729641675824,7.6043434,2626.8,2626.3,3.3784]
[1729641676118,0.34282,2626.4,2626.3,3.3784]
[1729641676514,3.2078,2626.5,2626.3,3.3784]
[1729641676720,3.55061,2626.5,2626.3,3.3784]
[1729641676917,3.2078,2626.5,2626.3,3.3784]
[1729641677117,0.34282,2626.4,2626.3,3.3784]
[1729641678928,0.34282,2626.5,2626.3,3.3784]
[1729641679517,3.2078,2626.6,2626.3,3.3784]
[1729641679716,3.2078,2626.6,2626.5,3.31281]
[1729641679927,3.2078,2626.6,2626.5,2.97]
[1729641679928,3.5506,2626.6,2626.5,2.97]
[1729641683025,3.2078,2626.6,2626.5,2.97]
[1729641683426,3.5506,2626.6,2626.5,2.97]
[1729641686129,0.34281,2626.5,2626.4,0.4035]
[1729641689130,3.8072,2626.5,2626.0,2.97]
[1729641689331,7.6043434,2626.6,2626.1,0.34286]
[1729641689537,0.34283,2626.4,2626.1,0.34286]
[1729641690834,0.34284,2626.3,2626.1,0.34286]
[1729641691531,0.34283,2626.4,2626.2,2.97]
[1729641691732,0.34283,2626.4,2626.2,3.31285]
[1729641692234,4.3965434,2626.5,2626.3,0.4073]
[1729641692432,4.7393634,2626.5,2626.4,0.4002]
[1729641692631,4.7393634,2626.5,2626.4,0.7999]
[1729641694140,0.34282,2626.5,2626.4,0.7999]
[1729641695037,7.6043434,2626.6,2626.4,0.7999]
[1729641695236,7.6043434,2626.6,2626.5,3.31281]
[1729641695431,3.5506,2626.6,2626.5,2.97]
[1729641695642,7.3578,2626.6,2626.5,2.97]
[1729641695837,7.3578,2626.6,2626.4,1.14272]
[1729641696040,7.9471434,2626.6,2626.5,0.34281]
[1729641696446,11.7543434,2626.6,2626.5,0.34281]
[1729641697137,11.4115434,2626.6,2626.5,0.34281]
[1729641697336,11.7543434,2626.6,2626.5,0.34281]
[1729641697542,7.9471434,2626.6,2626.5,0.34281]
[1729641698147,11.7543434,2626.6,2626.5,0.34281]
[1729641698341,7.3578,2626.6,2626.5,0.34281]
[1729641698841,8.00633524,2626.6,2626.5,0.34281]
[1729641699437,3.5506,2626.6,2626.5,0.34281]
[1729641700643,8.50753674,2626.6,2626.5,0.34281]
[1729641701048,8.16473674,2626.6,2626.5,0.34281]
[1729641702547,3.2078,2626.6,2626.5,0.34281]
[1729641702750,3.5506,2626.6,2626.5,0.34281]
[1729641704041,0.3428,2626.6,2626.5,0.34281]
[1729641704242,3.5506,2626.6,2626.5,0.34281]
[1729641706644,0.34281,2626.5,2626.4,1.14271]
[1729641708346,3.55061,2626.5,2626.4,1.14271]
[1729641709944,3.55061,2626.5,2626.4,0.7999]
[1729641712151,7.35781,2626.5,2626.4,0.7999]
[1729641716957,7.015,2626.5,2626.0,3.31287]
[1729641717159,0.34285,2626.2,2626.1,0.788]
[1729641717355,5.30558393,2626.2,2626.1,0.788]
[1729641720261,5.30558393,2626.2,2626.1,2.158]
[1729641721262,4.96273393,2626.2,2626.1,2.50086]
[1729641721451,4.96273393,2626.2,2626.1,6.30886]
[1729641722653,8.78909182,2626.2,2626.1,7.67886]
[1729641722858,4.46775789,2626.2,2626.1,7.67886]
[1729641723062,3.2078,2626.3,2626.2,0.34285]
[1729641723063,7.67555789,2626.3,2626.2,0.34285]
[1729641723259,7.67555789,2626.3,2626.2,6.89085]
[1729641723468,4.4027897,2626.5,2626.4,0.34282]
[1729641723767,3.2078,2626.6,2626.5,0.34281]
[1729641723967,3.2078,2626.9,2626.8,0.34276]
[1729641724162,1.8015,2627.4,2627.1,0.34272]
[1729641724363,0.34271,2627.3,2627.2,2.97]
[1729641726170,4.20097,2627.6,2627.2,6.7764]
[1729641726469,4.20097,2627.6,2626.9,1.27398]
[1729641726470,3.2078,2627.6,2627.5,2.97]
[1729641726772,3.55047,2627.6,2627.5,2.97]
[1729641727172,3.55047,2627.6,2627.4,0.8041]
[1729641727173,3.2078,2627.6,2627.4,0.8041]
[1729641727370,0.34268,2627.5,2627.4,0.8041]
[1729641727676,3.2078,2627.6,2627.3,2.97]
[1729641727974,0.34269,2627.4,2627.3,2.97]
[1729641728379,1.2083,2627.5,2627.1,2.97]
[1729641728380,0.34272,2627.2,2627.1,2.97]
[1729641728671,0.34273,2627.2,2626.9,3.775]
[1729641728869,0.34275,2627.0,2626.9,3.775]
[1729641729074,3.2078,2627.3,2626.6,2.97]
[1729641729276,0.34278,2626.8,2626.6,3.775]
[1729641729573,3.55057,2626.9,2626.6,4.11779]
[1729641729872,3.2078,2627.2,2626.6,3.775]
[1729641730070,0.34278,2626.7,2626.6,0.805]
[1729641730775,4.9505271,2627.0,2626.6,4.1178]
[1729641730973,0.34277,2626.9,2626.6,4.1178]
[1729641731171,5.2932771,2627.0,2626.7,0.34278]
[1729641731472,5.7968271,2627.1,2626.6,3.775]
[1729641731673,0.34277,2626.9,2626.6,4.11779]
[1729641732173,0.34277,2626.8,2626.6,4.11779]
[1729641733672,4.45452961,2627.0,2626.6,3.775]
[1729641734179,4.79727961,2627.0,2626.7,0.34278]
[1729641734672,4.79727961,2627.0,2626.8,0.34277]
[1729641735177,0.34276,2626.9,2626.7,0.34278]
[1729641735384,0.34278,2626.8,2626.6,4.11779]
[1729641737871,4.84102961,2626.9,2626.6,3.775]
[1729641738071,0.34278,2626.7,2626.6,3.775]
[1729641739080,0.34278,2626.7,2626.6,0.805]
[1729641744381,4.45452961,2626.8,2626.6,0.805]
[1729641744577,4.79730961,2626.8,2626.6,4.11779]
[1729641744978,4.45452961,2626.8,2626.6,3.775]
[1729641745282,4.45452961,2626.8,2626.7,0.34278]
[1729641745585,0.34277,2626.9,2626.6,4.11779]
[1729641745778,0.34277,2626.9,2626.7,0.34278]
[1729641746285,0.34277,2626.9,2626.8,1.37]
[1729641746476,4.79727961,2627.0,2626.8,1.71277]
[1729641746670,4.79727961,2627.0,2626.9,1.37]
[1729641746877,0.34275,2627.0,2626.9,1.37]
[1729641747383,4.79770637,2627.0,2626.9,1.37]
[1729641747583,0.34275,2627.0,2626.9,1.37]
[1729641748284,4.79772508,2627.0,2626.9,1.37]
[1729641748685,0.34275,2627.0,2626.9,1.37]
[1729641750579,3.55055,2627.0,2626.9,1.37]
[1729641751486,0.34275,2627.0,2626.9,1.37]
[1729641751688,3.55055,2627.0,2626.9,1.37]
[1729641752780,0.34276,2626.9,2626.8,1.37]
[1729641752983,5.21671527,2626.9,2626.8,1.37]
[1729641753795,0.76146,2626.9,2626.8,1.37]
[1729641759093,0.76146,2626.9,2626.8,1.71277]
[1729641759793,0.76146,2626.9,2626.8,1.37]
[1729641760195,0.76146,2626.9,2626.8,1.71277]
[1729641760695,0.76146,2626.9,2626.8,1.37]
[1729641763694,5.7119871,2626.9,2626.8,1.37]
[1729641764697,5.7119871,2626.9,2626.8,1.71277]
[1729641764993,5.7119871,2626.9,2626.8,1.37]
[1729641765699,5.7119871,2626.9,2626.8,1.71277]
[1729641766396,5.2932871,2626.9,2626.8,1.71277]
[1729641770601,0.34276,2626.9,2626.8,1.37]
[1729641770992,0.34276,2626.9,2626.8,1.71277]
[1729641771700,0.34276,2626.9,2626.8,1.37]
[1729641772297,0.34276,2626.9,2626.8,1.71277]
[1729641772990,0.34276,2626.9,2626.8,1.37]
[1729641773599,0.34276,2626.9,2626.8,2.12917]
[1729641774000,0.34276,2626.9,2626.8,1.7864]
[1729641774195,0.34276,2626.9,2626.8,2.12917]
[1729641776890,0.34276,2626.9,2626.8,1.7864]
[1729641777198,0.34276,2626.9,2626.8,0.4164]
[1729641779595,0.34277,2626.8,2626.7,1.71278]
[1729641780999,0.34277,2626.9,2626.8,0.34276]
[1729641781198,0.34277,2626.9,2626.8,1.71276]
[1729641781394,0.34277,2626.9,2626.8,1.37]
[1729641782307,0.34277,2626.9,2626.8,1.71277]
[1729641783508,3.55055,2627.0,2626.9,0.34276]
[1729641783808,3.55055,2627.0,2626.9,0.75246]
[1729641784113,0.34274,2627.1,2626.9,0.4097]
[1729641784302,1.14523,2627.1,2627.0,1.37]
[1729641784797,2.1725,2627.1,2626.9,0.75245]
[1729641785003,0.34275,2627.0,2626.9,0.75245]
[1729641785804,0.34275,2627.0,2626.7,0.34278]
[1729641785805,1.37,2627.0,2626.7,0.34278]
[1729641785999,0.34277,2626.8,2626.7,1.71278]
[1729641787209,0.28727,2626.8,2626.7,1.37]
[1729641790205,0.28727,2626.8,2626.4,0.4088]
[1729641790206,1.37,2626.8,2626.4,0.4088]
[1729641790397,1.37,2626.8,2626.4,0.4115]
[1729641790398,6.67872227,2626.5,2626.4,0.4115]
[1729641790710,1.71281,2626.5,2626.4,0.4115]
[1729641791207,1.71281,2626.5,2626.4,1.7815]
[1729641792907,1.71281,2626.5,2626.4,0.4115]
[1729641793509,1.71281,2626.5,2626.4,1.7815]
[1729641796609,0.34281,2626.5,2626.4,1.7815]
[1729641797715,3.2078,2626.6,2626.5,0.34281]
[1729641797914,5.44973851,2627.2,2626.9,0.34276]
[1729641797915,3.2078,2627.0,2626.9,0.34276]
[1729641798214,3.2078,2627.0,2626.9,1.71276]
[1729641798407,8.17136777,2627.0,2626.9,1.71276]
[1729641799009,9.4308592,2627.0,2626.9,5.51916]
[1729641799208,4.46729143,2627.0,2626.9,5.51916]
[1729641799414,4.46729143,2627.3,2627.2,0.34272]
[1729641799616,7.5069592,2627.4,2627.3,0.34271]
[1729641799916,4.46729143,2627.5,2627.4,0.34269]
[1729641800215,4.46729143,2627.5,2627.4,3.08269]
[1729641800403,4.46729143,2627.6,2627.4,6.5456]
[1729641800603,4.46729143,2627.6,2627.5,1.71268]
[1729641801007,4.46729143,2627.6,2627.5,1.37]
[1729641801417,4.80996143,2627.6,2627.5,1.37]
[1729641802214,4.46729143,2627.6,2627.5,1.37]
[1729641802520,4.80996143,2627.6,2627.5,1.37]
[1729641802819,1.16627,2627.6,2627.5,1.37]
[1729641803205,5.62639892,2627.6,2627.5,1.37]
[1729641805915,4.80279892,2627.6,2627.5,1.37]
[1729641806118,4.46012892,2627.6,2627.5,1.37]
[1729641806722,4.80279892,2627.6,2627.5,1.37]
[1729641808322,0.34267,2627.6,2627.5,1.37]
[1729641809016,7.66792892,2627.7,2627.5,1.37]
[1729641809313,8.01058892,2627.7,2627.6,1.37]
[1729641809923,8.01058892,2627.7,2627.6,5.51827]
[1729641809924,7.66792892,2627.7,2627.6,5.51827]
[1729641810221,0.34262,2628.0,2627.8,0.34264]
[1729641810222,4.46012892,2627.9,2627.8,0.34264]
[1729641810415,0.34263,2627.9,2627.8,1.37]
[1729641810618,0.34268,2627.5,2627.3,0.3427]
[1729641810821,0.34268,2627.5,2627.4,1.37]
[1729641811215,0.34268,2627.6,2627.4,1.37]
[1729641811424,0.34268,2627.6,2627.5,1.37]
[1729641812526,0.34268,2627.6,2627.5,2.74]
[1729641812717,8.01058892,2627.7,2627.5,3.08267]
[1729641812918,3.55045,2627.7,2627.6,1.37]
[1729641815924,3.2078,2627.7,2627.6,1.71267]
[1729641816118,3.2078,2627.7,2627.6,5.51827]
[1729641816523,3.2078,2627.7,2627.6,1.71267]
[1729641816918,3.2078,2627.7,2627.6,5.51827]
[1729641818521,3.55045,2627.7,2627.6,1.37]
[1729641818726,3.55045,2627.7,2627.6,1.71267]
[1729641819116,3.2078,2627.7,2627.6,1.71267]
[1729641819523,0.34265,2627.8,2627.6,1.71267]
[1729641819729,0.34265,2627.8,2627.7,1.37]
[1729641819730,3.55045,2627.8,2627.7,1.37]
[1729641821631,7.0134,2627.8,2627.7,1.37]
[1729641821826,11.81616892,2627.8,2627.7,1.37]
[1729641822720,13.18616892,2627.8,2627.7,1.37]
[1729641822916,0.34267,2627.6,2627.5,1.37]
[1729641823318,5.18582977,2627.6,2627.5,1.37]
[1729641823527,0.73437,2627.6,2627.5,1.37]
[1729641824329,0.73437,2627.6,2627.4,1.37]
[1729641824330,4.9695,2627.6,2627.4,1.37]
[1729641824629,4.9695,2627.6,2626.9,0.409]
[1729641824630,0.4245,2627.5,2626.9,0.409]
[1729641824831,0.34274,2627.1,2627.0,0.34273]
[1729641825125,0.34274,2627.1,2627.0,1.71273]
[1729641825319,0.34274,2627.1,2627.0,5.51913]
[1729641828235,0.34273,2627.2,2627.0,5.51913]
[1729641828435,0.34272,2627.3,2627.1,1.71273]
[1729641828639,0.34271,2627.3,2627.2,1.37]
[1729641831039,0.34271,2627.3,2627.0,0.34274]
[1729641831332,0.34271,2627.3,2625.9,1.37]
[1729641831333,0.34287,2626.1,2625.9,1.37]
[1729641831535,4.5064,2627.2,2626.0,1.37]
[1729641831536,3.2078,2626.2,2626.0,1.37]
[1729641831732,3.2078,2626.2,2626.1,1.37]
[1729641831733,3.55066,2626.2,2626.1,1.37]
[1729641832329,0.34287,2626.1,2625.9,2.97]
[1729641832833,0.34288,2626.0,2625.9,6.778]
[1729641833037,0.34288,2626.0,2625.9,2.97]
[1729641833333,0.34288,2626.0,2625.9,6.778]
[1729641833835,0.34287,2626.1,2625.9,6.778]
[1729641834135,0.34288,2626.0,2625.9,2.97]
[1729641834539,0.34288,2626.0,2625.9,6.778]
[1729641840743,3.2078,2626.2,2625.9,6.778]
[1729641840944,0.34288,2626.0,2625.9,2.97]
[1729641841446,0.34288,2626.0,2625.9,7.1923]
[1729641845641,3.2078,2626.2,2625.9,7.1923]
[1729641845946,3.2078,2626.2,2626.1,2.97]
[1729641845947,3.55065,2626.2,2626.1,2.97]
[1729641846145,3.2078,2626.2,2626.1,3.31286]
[1729641846450,3.2078,2626.2,2626.1,7.50776]
[1729641848237,3.1523,2626.2,2626.1,7.50776]
[1729641850439,0.34284,2626.3,2626.1,7.50776]
[1729641850651,3.2078,2626.4,2626.1,0.3869]
[1729641850852,0.34285,2626.2,2626.1,0.3869]
[1729641851452,0.73435,2626.2,2626.1,0.3869]
[1729641852352,0.73435,2626.2,2626.1,1.7569]
[1729641865675,2.10435,2626.2,2626.1,1.7569]
[1729641865874,0.34286,2626.1,2626.0,1.37]
[1729641866681,1.37,2626.1,2625.8,1.37]
[1729641866877,1.37,2625.9,2625.8,1.37]
[1729641867079,1.71289,2625.9,2625.8,1.37]
[1729641868681,1.37,2625.9,2625.8,1.37]
[1729641868883,0.34294,2625.5,2625.4,3.2078]
[1729641869084,1.71294,2625.5,2625.4,3.2078]
[1729641871891,4.45145977,2625.6,2625.5,0.34294]
[1729641872083,4.45145977,2625.7,2625.5,1.37]
[1729641872283,4.45145977,2625.8,2625.7,0.34291]
[1729641872488,0.34289,2625.9,2625.7,1.71291]
[1729641872694,0.34289,2625.9,2625.8,1.37]
[1729641873089,8.42333977,2626.0,2625.8,1.71289]
[1729641873292,0.34289,2625.9,2625.8,1.37]
[1729641874290,4.79434977,2625.9,2625.8,1.37]
[1729641874882,4.73884977,2625.9,2625.8,1.37]
[1729641875685,0.28739,2625.9,2625.8,1.37]
[1729641876489,5.23971823,2625.9,2625.8,1.37]
[1729641881096,4.95232823,2625.9,2625.8,1.7129]
[1729641881889,5.29521823,2625.9,2625.8,1.7129]
[1729641883089,4.95232823,2625.9,2625.8,1.7129]
[1729641883397,5.29521823,2625.9,2625.8,1.7129]
[1729641885090,5.29521823,2625.9,2625.8,1.37]
[1729641885899,5.29521823,2625.9,2625.8,1.7129]
[1729641886293,5.29521823,2625.9,2625.8,1.37]
[1729641886700,5.29521823,2625.9,2625.8,1.7129]
[1729641887803,4.95232823,2625.9,2625.8,1.7129]
[1729641888301,4.95232823,2626.0,2625.8,6.548]
[1729641888501,4.47266545,2626.0,2625.9,6.89089]
[1729641888695,4.95232823,2626.2,2626.0,0.34288]
[1729641888696,4.47266545,2626.1,2626.0,0.34288]
[1729641888892,4.47266545,2626.2,2626.1,0.34286]
[1729641889092,4.47266545,2626.2,2626.1,5.52086]
[1729641891700,4.47266545,2626.2,2626.1,1.37]
[1729641892004,0.75165,2626.2,2626.1,1.37]
[1729641892205,2.12165,2626.2,2626.1,1.37]
[1729641893201,0.75165,2626.2,2626.1,1.37]
[1729641893602,5.70397823,2626.2,2626.1,1.37]
[1729641894004,0.75165,2626.2,2626.1,1.37]
[1729641894400,0.75165,2626.2,2626.1,1.71286]
[1729641895102,0.75165,2626.2,2626.1,1.37]
[1729641896102,5.70397823,2626.2,2626.1,1.37]
[1729641897099,5.36112823,2626.2,2625.9,0.34288]
[1729641897306,0.85725,2625.9,2625.3,3.2078]
[1729641897501,1.71296,2625.4,2625.2,1.37]
[1729641897710,0.4093,2625.3,2625.2,1.37]
[1729641897913,5.64729321,2625.3,2625.2,1.37]
[1729641898507,1.59707,2625.3,2625.2,1.37]
[1729641898707,6.54939823,2625.3,2625.2,1.37]
[1729641898913,1.59707,2625.3,2625.2,1.37]
[1729641899209,1.59707,2625.3,2625.1,1.37]
[1729641899210,0.34299,2625.2,2625.1,1.37]
[1729641899409,0.34299,2625.2,2625.0,3.2078]
[1729641899410,0.34299,2625.1,2625.0,3.2078]
[1729641899611,0.34299,2625.1,2625.0,4.5778]
[1729641899811,4.81124674,2625.1,2625.0,4.5778]
[1729641900015,0.34299,2625.1,2625.0,4.5778]
[1729641900405,0.34299,2625.1,2625.0,3.2078]
[1729641901013,0.34303,2624.8,2624.7,6.1878]
[1729641901220,0.34302,2624.9,2624.7,6.53084]
[1729641901912,0.34302,2624.9,2624.7,6.1878]
[1729641902114,0.28752,2624.9,2624.7,6.1878]
[1729641902417,0.75203,2624.8,2624.7,3.2078]
[1729641902715,1.14433,2624.8,2624.7,3.2078]
[1729641910618,0.8013,2624.8,2624.7,3.2078]
[1729641910822,0.75203,2624.8,2624.7,3.2078]
[1729641912212,0.75203,2624.8,2624.6,2.98]
[1729641912519,0.409,2624.8,2624.6,2.98]
[1729641912717,0.34305,2624.7,2624.6,2.98]
[1729641913615,0.409,2624.8,2624.6,2.98]
[1729641913916,0.75204,2624.8,2624.6,2.98]
[1729641914717,0.409,2624.8,2624.6,2.98]
[1729641914917,0.34305,2624.7,2624.6,2.98]
[1729641915418,0.409,2624.8,2624.6,2.98]
[1729641915617,0.34305,2624.7,2624.6,2.98]
[1729641916019,0.34307,2624.6,2624.4,3.32308]
[1729641916320,0.34306,2624.7,2624.4,0.34308]
[1729641916525,3.6168,2624.8,2624.4,0.34308]
[1729641916821,0.34306,2624.6,2624.4,0.34308]
[1729641917311,0.34305,2624.7,2624.5,0.34307]
[1729641917915,3.6168,2624.8,2624.3,3.3865]
[1729641918119,0.34305,2624.7,2624.2,3.2078]
[1729641918318,0.34309,2624.4,2624.2,3.55091]
[1729641918509,0.3431,2624.3,2624.2,3.2078]
[1729641918714,0.34309,2624.4,2624.2,3.55091]
[1729641919224,0.4277,2624.3,2624.2,3.55091]
[1729641919824,3.2078,2624.8,2624.2,6.1878]
[1729641920021,0.34307,2624.5,2624.3,1.14579]
[1729641920516,0.34307,2624.5,2624.4,1.37]
[1729641920722,0.34308,2624.4,2624.3,0.8027]
[1729641920915,0.34308,2624.4,2624.3,2.1727]
[1729641921420,0.34308,2624.5,2624.3,2.5158]
[1729641921617,0.34308,2624.5,2624.4,1.37]
[1729641928423,0.28758,2624.5,2624.4,1.37]
[1729641932629,0.8575,2625.1,2624.4,1.37]
[1729641932630,3.5994,2625.0,2624.4,3.1257]
[1729641932825,3.55082,2625.0,2624.9,1.37]
[1729641933726,4.92082,2625.0,2624.9,1.7663]
[1729641934930,8.73042,2625.0,2624.9,0.3963]
[1729641936928,8.3874,2625.0,2624.7,1.37]
[1729641937129,1.37,2624.8,2624.5,0.4213]
[1729641937330,1.71306,2624.6,2624.5,2.13437]
[1729641937631,1.71306,2624.6,2624.5,1.7913]
[1729641940237,0.34306,2624.6,2624.5,2.13437]
[1729641940442,0.34306,2624.6,2624.5,1.7913]
[1729641941034,0.34306,2624.6,2624.5,0.4213]
[1729641941240,0.34306,2624.6,2624.5,2.13437]
[1729641942442,0.34306,2624.6,2624.5,1.7913]
[1729641945134,0.34306,2624.6,2624.5,1.37]
[1729641946343,0.34306,2624.6,2624.5,1.71307]
[1729641946740,7.67580521,2624.8,2624.5,1.37]
[1729641946937,7.67580521,2625.1,2624.7,1.37]
[1729641947236,7.67580521,2625.1,2625.0,1.37]
[1729641947237,3.5508,2625.1,2625.0,1.37]
[1729641947637,3.5508,2625.1,2625.0,1.71301]
[1729641948846,3.5508,2625.1,2625.0,1.37]
[1729641949238,3.2078,2625.1,2625.0,1.71301]
[1729641950339,3.55079,2625.1,2625.0,1.71301]
[1729641951439,3.55079,2625.1,2625.0,1.37]